Cogmind - Beta 16.1 @@@ ROGUE MODE // 2026.02.11 @ 15:13:19 Player: Megaknight51 Result: Destroyed by Autobeam Turret with Autobeam Performance ------------- Evolutions (0) 0 Regions Visited (2) 400 Robots Destroyed (24) 120 Value Destroyed (590) 590 Prototype IDs (13) 260 Alien Tech Used (0) 0 Bonus (0) 0 TOTAL SCORE: 1370 Bonus ------- None Cogmind --------- Core Integrity 0/250 Matter 145/300 Energy 97/100 System Corruption 0% Temperature Cool (12) Movement Core (1400) Ox27 Location -10/Subcaves Parts ------- > --- POWER (1) -------- (None) > --- PROPULSION (2) --- (None) > --- UTILITY (2) ------ Huge Storage Unit Weapon Shielding > --- WEAPON (2) ------- Small Laser > --- INVENTORY (25) --- Ion Engine Light Ion Engine Flightbrick Small Storage Unit Sensor Array Signal Interpreter Improved Terrain Scanner Weapon Shielding Peak State ------------ > --- POWER ------------ Ion Engine > --- PROPULSION ------- Light Treads > --- UTILITY ---------- Huge Storage Unit Improved Terrain Scanner > --- WEAPON ----------- Light Cannon Mining Laser > --- INVENTORY -------- Ion Engine Ion Engine Light Ion Engine Flightbrick Small Storage Unit Sensor Array Signal Interpreter Weapon Shielding Weapon Shielding Weapon Shielding Small Laser Small Laser Assault Rifle Grenade Launcher [Rating: 12] Favorites ----------- Power Ion Engine Engine Ion Engine Propulsion Light Treads Treads Light Treads Utility Huge Storage Unit Device Improved Terrain Scanner Storage Huge Storage Unit Protection Weapon Shielding Weapon Assault Rifle Energy Gun Small Laser Ballistic Gun Assault Rifle Ballistic Cannon Light Cannon Launcher Grenade Launcher Special Weapon Mining Laser Build | -11 -10 -10 ------- Run | Yrd Mat Sub Slots Evolved . | . . . Power . | . . . Propulsion . | . . . Utility . | . . . Weapon . | . . . Parts Attached 22 | 7 8 7 Power 5 | 1 3 1 Engine 5 | 1 3 1 Core . | . . . Reactor . | . . . Propulsion 2 | 2 . . Treads 2 | 2 . . Leg . | . . . Wheel . | . . . Hover . | . . . Flight . | . . . Utility 8 | 2 3 3 Device 3 | 1 1 1 Storage 2 | 1 1 . Processor . | . . . Hackware . | . . . Protection 3 | . 1 2 Artifact . | . . . Weapon 7 | 2 2 3 Energy Gun 2 | . . 2 Energy Cannon . | . . . Ballistic Gun 2 | 2 . . Ballistic Cannon 1 | . 1 . Launcher 1 | . . 1 Special Weapon 1 | . 1 . Impact Weapon . | . . . Slashing Weapon . | . . . Piercing Weapon . | . . . Special Melee Weapon . | . . . Unidentified Prototypes . | . . . Parts Lost 12 | . 3 9 Power 3 | . 1 2 Propulsion 2 | . 1 1 Utility 2 | . 1 1 Weapon 5 | . . 5 Highest Loss Streak 5 | . 1 5 To Critical Strikes . | . . . Average Backups 10 | 1 9 12 Power 2 | . 2 2 Propulsion . | . . . Utility 4 | . 3 5 Weapon 3 | . 3 3 Tool/Special . | . . . Unused Backups 4 | . . 4 Power 1 | . . 1 Propulsion 1 | . . 1 Utility 2 | . . 2 Weapon . | . . . Tool/Special . | . . . Average Slot Usage (%) 77 | . 76 79 Engine 13 | . 13 13 Treads 13 | . 15 10 Device 4 | . 1 9 Storage 14 | . 14 14 Protection 3 | . 3 4 Energy Gun 2 | . . 5 Ballistic Gun 16 | . 25 2 Ballistic Cannon 5 | . 2 11 Special Weapon 2 | . . 6 Peak Build Rating 12 | 7 7 12 Average Rating 7 | 5 6 9 On Entrance 4 | . 7 7 Avg Prop Armor Cover (%) . | . . . Naked Turns . | . . . Heaviest Build 92 | 13 91 92 Greatest Support 40 | 40 40 20 Greatest Overweight (x) 29 | . 29 29 Average Overweight (x) 3 | . 3 6 Largest Inventory Capacity 25 | 8 25 25 Average Capacity 23 | 7 22 25 Most Carried 17 | 3 13 17 Average Carried 11 | 1 9 14 Final Capacity 25 | 8 25 25 Final Carried 13 | 3 13 11 Class Distribution -------------------- 100% | Mutant Dominant Class ---------------- Mutant | -10/Materials Mutant | -10/Subcaves Resources | -11 -10 -10 ----------- Run | Yrd Mat Sub Matter Collected 700 | 277 377 46 Remotely . | . . . Salvage Created 654 | 76 487 91 Parts 50 | 11 28 11 Haulers Intercepted . | . . . Recyclers Shooed 1 | . 1 . Parts Field Recycled . | . . . Retrieved Matter . | . . . Parts Self-Destructed 5 | . . 5 Prevented . | . . . Parts Restored . | . . . Kills | -11 -10 -10 ------- Run | Yrd Mat Sub Combat Hostiles Destroyed 18 | . 13 5 Guns 14 | . 13 1 Cannons 1 | . . 1 AOE 3 | . . 3 Classes Destroyed 6 | 1 4 1 Tunneler 4 | 4 . . Mechanic 1 | . 1 . Turret 1 | . . 1 Swarmer 6 | . 3 3 Grunt 9 | . 9 . Subdweller 3 | . 1 2 Best Kill Streak 3 | 3 3 3 Combat Bots Only 3 | . 3 3 Max Kills in Single Turn 3 | 1 1 3 Gunslinging . | . . . Exploded 3 | . . 3 Melee . | . . . Uniques/NPCs Destroyed . | . . . Combat | -11 -10 -10 -------- Run | Yrd Mat Sub Hostile Shots Fired 313 | . 53 260 Missed 130 | . 13 117 Hits 183 | . 40 143 Projectile 183 | . 40 143 Critical Strikes 1 | . . 1 Damage Taken 1410 | . 453 957 Core 252 | . 22 230 Absorbed by Shields . | . . . Redirected to Shielding 78 | . . 78 Core Remaining (%) 100 | 100 . . Volleys Fired 90 | 5 45 40 Largest 2 | 2 2 2 Hottest 120 | 40 120 100 Shots Fired 162 | 10 90 62 Gun 130 | 10 89 31 Cannon 14 | . . 14 Launcher 1 | . . 1 Special 17 | . 1 16 Kinetic 127 | 10 89 28 Thermal 34 | . 1 33 Explosive 1 | . . 1 Electromagnetic . | . . . Robot Hit Streak 19 | 3 16 19 Robot Miss Streak 3 | 1 3 2 Penetration Max . | . . . Secondary Targets . | . . . Shots Hit Robots 103 | 5 64 34 Core Hits 35 | 4 19 12 Critical Kills 1 | . 1 . Critical Parts Destroyed . | . . . Critical Strikes 1 | . 1 . Destroy 1 | . 1 . Melee Attacks . | . . . Impact . | . . . Slashing . | . . . Piercing . | . . . Sneak Attacks . | . . . Combat Hostiles . | . . . Follow-up Attacks . | . . . Damage Inflicted 1507 | 61 858 588 Guns 1194 | 61 858 275 Cannons 194 | . . 194 Explosions 119 | . . 119 Melee . | . . . Ramming . | . . . Kinetic 1265 | 61 858 346 Thermal 123 | . . 123 Explosive 119 | . . 119 Electromagnetic . | . . . Impact . | . . . Slashing . | . . . Piercing . | . . . Highest Corruption . | . . . Average Corruption . | . . . Corruption Purged . | . . . Corruption Blocked . | . . . Overload Shots . | . . . Overflow Damage . | . . . Projectiles . | . . . Explosions . | . . . Melee . | . . . Knockbacks 3 | . . 3 Impact . | . . . Kinetic 3 | . . 3 Secondary . | . . . Self-Inflicted Damage 35 | . . 35 Shots 1 | . . 1 Rammed . | . . . Targets Rammed . | . . . Kicked . | . . . Crushed . | . . . Highest Temperature 20 | . 20 10 Average Temperature 7 | . 9 4 Received Heat Transfer 912 | . 216 696 Siege Activations . | . . . Martial Activations . | . . . Shielding Activations . | . . . Robots Disrupted . | . . . Combat Hostiles . | . . . Robots Corrupted . | . . . Combat Hostiles . | . . . Parts Fried . | . . . Impact Corruptions . | . . . Robots Melted . | . . . Combat Hostiles . | . . . Parts Melted . | . . . Heat Transferred 275 | . . 275 Parts Sabotaged . | . . . Parts Stolen . | . . . Parts Stripped . | . . . Power Chain Reactions . | . . . Alert | -11 -10 -10 ------- Run | Yrd Mat Sub Maximum Alert Level . | . . . Low Security (%) 100 | 100 100 . Level 1 . | . . . Level 2 . | . . . Level 3 . | . . . Level 4 . | . . . Level 5 . | . . . High Security . | . . . Max Security . | . . . Peak Influence 160 | 10 160 . Initial . | . . . Average 18 | . 19 . Influence Increases 650 | 20 355 275 Destroy 0b10 Robot/C 320 | . 240 80 Destroy 0b10 Robot/NC 25 | 20 5 . Destroy Leader 50 | . 50 . Disable Machine 30 | . 30 . Lose Combat Pursuer 225 | . 30 195 Influence Decreases 569 | 20 355 194 Time Decay 469 | 20 335 114 Lost Part 100 | . 20 80 Squads Dispatched 5 | . 5 . Investigation 2 | . 2 . Extermination . | . . . Reinforcement 3 | . 3 . Assault . | . . . Garrison . | . . . Intercept . | . . . Searches Triggered . | . . . Construction Impeded . | . . . Haulers Reinforced . | . . . Active Scanning Responses . | . . . Cargo Convoy Interrupts . | . . . Stealth | -11 -10 -10 --------- Run | Yrd Mat Sub Distress Signals 6 | . 6 . Communications Jammed . | . . . Distress Signals . | . . . Times Spotted 39 | . 25 14 Peak Tracking Total 5 | . 5 5 Tactical Retreats 9 | . 2 7 Traps | -11 -10 -10 ------- Run | Yrd Mat Sub Traps Triggered 1 | . 1 . Indirectly . | . . . Trap Hack Attempts . | . . . Triggered . | . . . Disarmed . | . . . Reprogrammed . | . . . Reused . | . . . Traps Extracted . | . . . Installed . | . . . Triggered . | . . . Machines | -11 -10 -10 ---------- Run | Yrd Mat Sub Machines Disabled 6 | . 3 3 Max in Single Turn 1 | . 1 1 Machines Repaired . | . . . Machines Dismantled . | . . . Machines Sabotaged . | . . . Overloaded Fab Kills . | . . . Hacking | -11 -10 -10 --------- Run | Yrd Mat Sub Machines Accessed 3 | . 2 1 Terminals 2 | . 2 . Fabricators . | . . . Repair Stations . | . . . Recycling Units . | . . . Scanalyzers . | . . . Garrison Access . | . . . Total Hacks 7 | . 6 1 Successful 4 | . 3 1 Failed 3 | . 3 . Catastrophic . | . . . Database Lockouts . | . . . Manual 4 | . 4 . Terminals 6 | . 6 . Fabricators . | . . . Repair Stations . | . . . Recycling Units . | . . . Scanalyzers . | . . . Garrison Access . | . . . Terminal Hacks 4 | . 3 1 Robot Analysis 2 | . 2 . Zone Layout 1 | . 1 . Proto ID Catalog 1 | . . 1 Fabricator Hacks . | . . . Repair Station Hacks . | . . . Recycling Unit Hacks . | . . . Scanalyzer . | . . . Garrison Access Hacks . | . . . Unauthorized Hacks . | . . . Terminals . | . . . Fabricators . | . . . Repair Stations . | . . . Recycling Units . | . . . Scanalyzers . | . . . Garrison Access . | . . . Data Cores Recovered . | . . . Used . | . . . Hacking Detections 2 | . 2 . Full Trace Events 1 | . 1 . Feedback Events . | . . . Feedback Blocked . | . . . Robot Schematics Acquired . | . . . Robots Built . | . . . Authchips . | . . . Time . | . . . Total Robot Build Rating . | . . . Part Schematics Acquired . | . . . Parts Built . | . . . Authchips . | . . . Time . | . . . Total Part Build Rating . | . . . Part Studies Acquired . | . . . Parts Repaired . | . . . Time . | . . . Parts Recycled . | . . . Recycled Matter . | . . . Retrieved Matter . | . . . Retrieved Components . | . . . Parts Scanalyzed . | . . . Part Schematics Acquired . | . . . Parts Damaged . | . . . Bothacking | -11 -10 -10 ------------ Run | Yrd Mat Sub Used RIF Installer . | . . . Robots Hacked . | . . . Non-combat . | . . . Combat . | . . . Robot Hacks Applied . | . . . Relay Couplers Released . | . . . Fabnet Peak Effective % . | . . . Robots Rewired . | . . . Allies Hacked . | . . . Hacks Repelled . | . . . Allies | -11 -10 -10 -------- Run | Yrd Mat Sub Total Allies . | . . . Largest Group . | . . . Highest-Rated Group . | . . . Highest-Rated Ally . | . . . Total Orders . | . . . Ally Attacks . | . . . Total Damage . | . . . Kills . | . . . Allies Corrupted . | . . . Allies Melted . | . . . Intel | -11 -10 -10 ------- Run | Yrd Mat Sub Active Infowar (turns) 1655 | 77 58 1520 Terrain 1520 | . . 1520 Seismic 135 | 77 58 . Robot Analysis Total 2 | . 2 . Derelict Logs Recovered 1 | . . 1 Drone Launches . | . . . Drone Recoveries . | . . . Exploration | -11 -10 -10 ------------- Run | Yrd Mat Sub Turns Passed 5865 | 153 3385 2327 Spaces Moved 987 | 82 578 327 Core 38 | 5 1 32 Treads 949 | 77 577 295 Legs . | . . . Wheels . | . . . Hover . | . . . Flight . | . . . Fastest Speed 50 | 50 160 480 Average Speed 445 | 153 413 576 Slowest Speed 1500 | 160 1500 1500 Overloaded Moves . | . . . Propulsion Burnouts . | . . . Robots Hopped . | . . . Potential Cave-ins . | . . . Cave-ins Triggered . | . . . Exploration Rate (%) 38 | 4 92 20 Regions Visited 2 Branch Regions 1 Pre-discovered Areas . | . . . Known Exits Taken . | . . . Unknown Exits Taken 2 | 1 1 . Scrap Searched . | . . . Spaces Dug . | . . . Terrain Destroyed 5 | . . 5 Melee . | . . . Projectile . | . . . AOE 5 | . . 5 Terrain Rammed . | . . . Walls Destroyed . | . . . Machines Disabled . | . . . Actions | -11 -10 -10 --------- Run | Yrd Mat Sub Total 2250 | 96 1479 675 Wait 1129 | . 837 292 Move 985 | 81 577 327 Hop . | . . . Pick Up 11 | 3 7 1 Fast Attach 12 | 7 5 . Attach 7 | . . 7 Detach 2 | . 1 1 Swap 12 | . 6 6 Drop 2 | . 1 1 Fire 90 | 5 45 40 Melee . | . . . Ram . | . . . Kick . | . . . Crush . | . . . Escape Stasis . | . . . Rewire . | . . . Trap . | . . . Miscellaneous . | . . . Route ------- -11/Scrapyard -10/Materials (discovered 6 exits: [*Mat x3] / [*Min x2] / *Sub) -10/Subcaves (discovered 1 exit: [*Rec]) History --------- Turn | Location | Event 40 | -11/Scrapyard | Discovered new exit (range 16) 154 | -11/Scrapyard | Entered Materials 307 | -10/Materials | Build established: Mutant 385 | -10/Materials | Discovered new exit (range 12) 606 | -10/Materials | Discovered new exit (range 16) 654 | -10/Materials | Derelicts attacked the area 1779 | -10/Materials | Discovered new exit (range 4) 2691 | -10/Materials | Discovered new exit (range 16) 3059 | -10/Materials | Discovered new exit (range 10) 3491 | -10/Materials | Discovered new exit (range 11) 3539 | -10/Materials | Entered Subcaves 3540 | -10/Subcaves | Approached by a straggling Scientist 3809 | -10/Subcaves | Learned Materials garrison access intel 3859 | -10/Subcaves | A swath of the cavern ceiling suddenly collapsed 4527 | -10/Subcaves | Visited 4L-MR0's lab 4582 | -10/Subcaves | Found Flightbrick 5018 | -10/Subcaves | Discovered new exit (range 16) 5361 | -10/Subcaves | Core integrity fell below 50% 5407 | -10/Subcaves | Lost 5 parts (1p1n1u2w) 5851 | -10/Subcaves | Core integrity fell below 20% 5866 | -10/Subcaves | Destroyed by Autobeam Turret with Autobeam Last Messages --------------- 05020_ S-10 Pest destroyed. 05022_ Mining Laser destroyed. 05028_ S-10 Pest destroyed. 05033_ Lgt. Ion Engine fries itself beyond repair. 05033_ Flight Unit fries itself beyond repair. 05037_ Lgt. Assault Rifle fries itself beyond repair. 05056_ JS-VHC(c) destroyed. 05202_ Subatomizers dissect the Tech Extrapolator. 05340_ Acquired 9 matter. 05346_ Lgt. Treads destroyed. 05348_ Grenade Launcher destroyed. 05350_ Autobeam Turret knocked back. 05356_ Machine disabled. 05366_ Ion Engine destroyed. 05376_ Lgt. Cannon destroyed. 05376_ Weapon Shielding destroyed. 05829_ Autobeam Turret destroyed. 05844_ Sml. Laser destroyed. 05848_ Ion Engine destroyed. 05860_ Assault Rifle destroyed. Map ----- +----------------------------------------------------+ | ??????#????# ##??##???????#????????????????????? | | ????#??????## ##????????#??????????????????????? | | #??????#????# ##??##?#??????????????????????????? | | #?????#####?# ##?#?????#????????????????????????? | | ?#?#????#??## #??#?????????????????????????????? | | ????#?##?### ###??#????#?#?????????????????????? | | #?##??#???## #?#?#?##?#???????????????????????? | | #????#???#### ##?###?#??????#?#?????????????????? | | ??#??##?## ##?????###????????????????????????? | | ?#?????## ###??????#????????????????????????? | | #??????##### #?#??#???# ?????????????????????? | | ?#?#?#??#??# ####??????? ????????????????????? | | ??????###?## ###???##? ??#?????????????????? | | #??#?###?## ###?#?#? #??????????????????? | | ??######?# #####? " ????????????????? | | ##???#?### ##### ??????????????????? | | #?###?##### ### ### ???????????????????? | | ?##?#?###?## #### ##### ????????????????????? | | ?#?#???##### ### #??## ?##??????????????????? | | ###?##?####### #### ########??????????????? | | ##?#?###?#### #### #" """#??????????????? | | #?##???##?## ### # #??????????????? | | ##?####?#### ## # %"#??????????????? | | ##?###?## ## ""##?????????????? | | ######### # % % <#?????????????? | | " #### ## %% @ % t"#??????????????? | | "" """"### ### % # "#??????????????? | | """" " ## ## # ??? "#??????????????? | | " ## ##### #"????????????????????? | | "##" # ##### ###???????????????????? | | +##### ## ###### ##??????????????????? | | "### #" ###?### ####???????????????? | | "### ###???# ######??????????? | | ""#?# #### ?## #??????????? | | X"### #" # #?## ?#### #?????????? | | ""#######" # ##?? ????# #????????? | | ""#??#### # #?#?? ?# ?????? | | ""##??#?## ### ??## #???? | | ###??##?## ####? ??### ###???? | | ?#?###?#### #?#?? ??##?# #?????? | | ?##????#?## ## ??? ??# ### #????? | | ????#?#?## ##?? ?? ? ?# ## ###??# #???? | | ###?##???# ##???????? ### #?????## #???? | | ?#??##??### ##???????? #?# #??????? ???? | | ???#?????#####??#?#??? #?# #???????? ??? | | ??##??#?####?#???????? ##? ????????????? | | ?#????#??###????????????## ??? ????????????? | | ??#??#?????????#????##????? ??? ????????????? | | ?###???#???#????????????????? ??? ## ????????????? | | #??#?????##??#??#?????#??????????????????????????? | +----------------------------------------------------+ Best States ------------- Heat Dissipation 35 Energy Generation 15 Energy Capacity 250 Matter Stores 300 Matter Capacity 300 Sight Range 16 Terrain Scan Range 16 Terrain Scan Density 10 Weapon Shielding 33 Evasion (%) 40 Recoil Reduction 2 Item Schematics ----------------- None Robot Schematics ------------------ None Fabricated ------------ Nothing Repaired ---------- Nothing Studied --------- None Alien Tech Used ----------------- None Achievements -------------- None Challenges ------------ None Game ------ Seed ThrusterRemoteShockpuncher Manual? 0 Play Time 00:12:47 Cumulative 61.0 hours Start 2026.02.11 @ 15:02:14 End 2026.02.11 @ 15:13:19 Sessions 1 Manual Loads 0 Difficulty Rogue Special Mode None Game No. 130 Rogue 130 Adventurer 0 Explorer 0 Win Type - Total 0 Types 0/0/0/0/0/0/0/0/0/0 Lore% 36 Gallery% 31 Achievement% 29 Wizard Run 0 Options --------- Layout 0 ASCII 0 Keyboard 1 Movement Arrows Keybinds 0 Fullscreen 1 Font 18/Smallcaps Map View 76x50 Zoom Use 65% Tactical HUD 1 Map Filters NONE Filters NONE Steam 1 RUN: 298f1d39-a10c-4629-84d1-ccee0dddbac4